fUSD/lending_fUSD_20240126
["ID","MTS","AMOUNT","RATE_DAILY","PERIOD"]
[312794448,1706241043830,-1190.69897912,0.000324,2]
[312794449,1706241043840,-1190.69897912,0.000324,2]
[312794450,1706241043849,-1190.69897912,0.000324,2]
[312794451,1706241043858,-1190.69897912,0.000324,2]
[312794452,1706241043867,-1190.69897912,0.000324,2]
[312794453,1706241043877,-1190.69897912,0.000324,2]
[312794454,1706241043886,-1190.69897912,0.000324,2]
[312794455,1706241043895,-1190.69897912,0.00032457,2]
[312794456,1706241043904,-163.38400563,0.000325,2]
[312794457,1706241043914,-179.32,0.00032877,15]
[312794458,1706241043923,-2000.0,0.00032899,4]
[312794459,1706241043933,-1957.70021366,0.00033,4]
[312794460,1706241043942,-1190.69897912,0.0003322,2]
[312794461,1706241043951,-233.58,0.00033733,2]
[312794462,1706241043960,-427.0,0.00033733,2]
[312794463,1706241043969,-157.31,0.00033975,2]
[312794464,1706241043979,-1190.69897912,0.00033984,2]
[312794465,1706241043988,-1000.0,0.00034,4]
[312794466,1706241043998,-155.12,0.00034195,2]
[312794467,1706241044007,-153.96831706,0.00034295,2]
[312794468,1706241044017,-434.497036,0.00034295,2]
[312794469,1706241044026,-207.0,0.00034354,2]
[312794470,1706241044035,-1000.0,0.00034359,2]
[312794471,1706241044045,-6729.2801976,0.00034747,14]
[312794472,1706241044054,-1190.69897912,0.00034747,2]
[312794473,1706241044063,-567.68533909,0.000349,2]
[312794474,1706241044072,-150.0,0.00035,11]
[312794475,1706241044081,-1135.57905654,0.00035253,7]
[312794476,1706241044090,-472.0,0.00035474,5]
[312794477,1706241044099,-1190.69897912,0.0003551,2]
[312794478,1706241044108,-673.60139,0.0003552,2]
[312794479,1706241044118,-2505.0478316,0.0003574,2]
[312794480,1706241044127,-278.0,0.00035748,30]
[312794481,1706241044136,-151.0,0.00035748,30]
[312794482,1706241044145,-151.0,0.00035748,30]
[312794483,1706241044155,-151.0,0.00035748,30]
[312794484,1706241044164,-151.0,0.00035748,30]
[312794485,1706241044173,-151.0,0.00035748,30]
[312794486,1706241044183,-151.0,0.00035748,30]
[312794487,1706241044191,-151.0,0.00035748,30]
[312794488,1706241044200,-151.0,0.00035748,30]
[312794489,1706241044210,-1000.0,0.000358,9]
[312794490,1706241044219,-3300.30698936,0.00035875,2]
[312794491,1706241044228,-1000.0,0.000359,9]
[312794492,1706241044238,-1000.0,0.00036,10]
[312794493,1706241044247,-164.91681992,0.0003601,2]
[312794494,1706241044256,-195.04292305,0.0003609,2]
[312794495,1706241044265,-54043.28194231,0.00036095,2]
[312794496,1706241044404,-288.71974104,0.00036095,2]
[312794497,1706241044415,-651.01243477,0.00036095,2]
[312794498,1706241044494,-223.66476018,0.00036095,2]
[312794499,1706241044507,-572.09977409,0.00036095,2]
[312794500,1706241044519,-702.38304042,0.00036095,2]
[312794501,1706241044530,-814.20859108,0.00036095,2]
[312794502,1706241044541,-2390.5060322,0.00036095,2]
[312794503,1706241044553,-6462.86184472,0.00036095,2]
[312794504,1706241044564,-1210.36080118,0.00036095,2]
[312794520,1706241045879,-288.64093813,0.00022899,2]
[312794521,1706241045888,-336.51668273,0.00036095,2]
[312794522,1706241046045,-865.07617275,0.00036095,2]
[312794523,1706241046056,-3549.62626472,0.00036095,2]
[312794524,1706241046106,-316.75908617,0.00036095,2]
[312794525,1706241046162,-649.64689608,0.00036095,2]
[312794526,1706241046174,-725.0649988,0.00036095,2]
[312794527,1706241046186,-279.88866,0.00036095,2]
[312794528,1706241046198,-644.28818466,0.00036095,2]
[312794529,1706241046220,-325.87400702,0.00036095,2]
[312794530,1706241046232,-500.62895699,0.00036095,2]
[312794535,1706241089308,235.02523933,0.00024341,8]
[312794537,1706241220811,157.41,0.00019637,2]
[312794539,1706241234566,188.02019144,0.00023098,7]
[312794540,1706241239590,188.02019144,0.00026799,12]
[312794572,1706242039195,-1000.0,0.00021747,2]
[312794573,1706242039217,-161.36582835,0.00021748,2]
[312794574,1706242039237,-150.0,0.00021846,2]
[312794575,1706242039256,-19030.94116353,0.00021847,2]
[312794576,1706242039276,-637.31413346,0.00021848,2]
[312794577,1706242047096,-2490.43830927,0.00021848,2]
[312794578,1706242047117,-161.36582832,0.00022036,2]
[312794579,1706242047138,-161.36582832,0.00022324,2]
[312794580,1706242047158,-17192.76562217,0.000225,2]
[312794581,1706242047179,-966.64924932,0.00022542,3]
[312794582,1706242047199,-6806.0,0.00022542,2]
[312794583,1706242047247,-161.36582832,0.00022612,2]
[312794584,1706242047268,-157.41,0.00022613,2]
[312794585,1706242047288,-179.95,0.00022677,2]
[312794586,1706242047308,-1000.0,0.00022798,2]
[312794587,1706242047327,-1000.0,0.000228,2]
[312794588,1706242047348,-892.90349438,0.000228,2]
[312794589,1706242050092,-32989.59310562,0.000228,2]
[312794590,1706242050112,-7419.55151255,0.00022899,2]
[312794591,1706242050135,-84349.5871,0.000229,2]
[312794592,1706242050156,-24447.5311,0.000229,2]
[312794593,1706242050176,-161.36582832,0.000229,2]
[312794594,1706242050199,-151.42692172,0.000229,2]
[312794595,1706242050220,-1626.8546425,0.000229,2]
[312794603,1706242232087,-1000.0,0.00022898,2]
[312794604,1706242232097,-10570.52821242,0.00022899,2]
[312794605,1706242232107,-283.00221206,0.000229,2]
[312794606,1706242232117,-567.78952827,0.000229,2]
[312794607,1706242232126,-2500.0,0.000229,2]
[312794608,1706242232135,-184.67736102,0.000229,2]
[312794609,1706242232156,-183.79340836,0.000229,2]
[312794610,1706242232166,-501.18849944,0.000229,2]
[312794611,1706242232175,-418.61,0.00022903,2]
[312794612,1706242232184,-2024.87343159,0.00022999,3]
[312794613,1706242232194,-1043.09833142,0.00022999,2]
[312794614,1706242232203,-7817.81458505,0.00022999,2]
[312794615,1706242232212,-56576.29765395,0.00023,2]
[312794616,1706242232226,-5808.53689687,0.00023,2]
[312794617,1706242232237,-8187.96528008,0.00023,2]
[312794618,1706242232250,-3025.38731659,0.00023,2]
[312794619,1706242232262,-1934.24120179,0.00023,2]
[312794620,1706242232273,-1169.53619494,0.00023,2]
[312794621,1706242232286,-76582.22621444,0.00023,2]
[312794622,1706242232298,-555.79337352,0.00023,2]
[312794623,1706242232309,-385.33323618,0.00023,2]
[312794624,1706242232369,-627.62684945,0.00023,2]
[312794625,1706242232381,-1283.19,0.00023,2]
[312794626,1706242232393,-650.41397724,0.00023,2]
[312794627,1706242232405,-492.21325743,0.00023,2]
[312794628,1706242232430,-56316.21675559,0.00023,2]
[312794661,1706242237967,-626.52455105,0.00023,2]
[312794662,1706242238075,-1924.93981773,0.00023,2]
[312794663,1706242238087,-664.88675611,0.00023,2]
[312794664,1706242238133,-553.19678644,0.00023,2]
[312794665,1706242238187,-2648.40880826,0.00023,2]
[312794666,1706242238298,-151.42692169,0.000229,2]
[312794667,1706242238308,-405576.23676642,0.00023,2]
[312794668,1706242238320,-1024.51318867,0.00023,2]
[312794669,1706242238332,-289.4002629,0.00023,2]
[312794670,1706242238351,-3502565.77911605,0.00023,2]
[312794671,1706242238360,-456136.42350974,0.00023,2]
[312794672,1706242238372,-320.02750419,0.00023,2]
[312794715,1706242239239,157.41,0.00019637,2]
[312794717,1706242240490,-545.95838784,0.00023,2]
[312794718,1706242240502,-336.91501424,0.00023,2]
[312794719,1706242240722,-537.75567202,0.00023,2]
[312794720,1706242240734,-317.0830508,0.00023,2]
[312794721,1706242240746,-17984.95107751,0.00023,2]
[312794722,1706242240758,-816.22100029,0.00023,2]
[312794723,1706242240812,-639.14654176,0.00023,2]
[312794724,1706242240824,-735.43609094,0.00023,2]
[312794734,1706242243113,-543.33974753,0.00023,2]
[312794735,1706242243170,-5242.2288499,0.00023,2]
[312794736,1706242243181,-8861.70707,0.00023,2]
[312794737,1706242243193,-567.36316,0.00023,2]
[312794738,1706242243228,-653.03474555,0.00023,2]
[312794739,1706242243337,-9945.0,0.00023,2]
[312794768,1706242246188,-24336.25,0.00023,2]
[312794788,1706242246369,-425.58743,0.00023,2]
[312794790,1706242246382,-2329.17685,0.00023,2]
[312794792,1706242246394,-41620.21243931,0.00023,2]
[312794798,1706242374094,200.0,0.00021555,2]
[312794799,1706242422113,179.87,0.00021555,2]
[312794800,1706242684775,150.33114244,0.00027,7]
[312794801,1706242685573,155.18,0.0002038,2]
[312794802,1706242779102,23900.0,0.00021555,2]
[312794803,1706242870954,250.0,0.00021555,2]
[312794804,1706243021481,-150.0,0.00021621,2]
[312794805,1706243026674,-150.0,0.00021621,2]
[312794806,1706243031589,-150.0,0.00021621,2]
[312794807,1706243041966,362.29642557,0.0002162,2]
[312794808,1706243047104,-76.01403717,0.00021621,2]
[312794809,1706243047124,-73.98596283,0.00021621,2]
[312794810,1706243049197,-150.0,0.00021621,2]
[312794811,1706243049590,-150.0,0.00021621,2]
[312794812,1706243050131,203.62279073,0.0002162,2]
[312794813,1706243050162,-150.0,0.00021621,2]
[312794814,1706243051291,-150.0,0.00021621,2]
[312794815,1706243052209,418.78043636,0.0002162,2]
[312794816,1706243053970,-150.0,0.00021621,2]
[312794817,1706243054607,-150.0,0.00021621,2]
[312794818,1706243055080,-150.0,0.00021621,2]
[312794819,1706243056587,-150.0,0.00021621,2]
[312794820,1706243058889,-150.0,0.00021621,2]
[312794821,1706243059391,-150.0,0.00021621,2]
[312794822,1706243059804,-150.0,0.00021621,2]
[312794823,1706243072339,215.89206957,0.0002162,2]
[312794824,1706243076283,-46.61638069,0.00021621,2]
[312794825,1706243076306,-103.38361931,0.00021621,2]
[312794826,1706243077391,-150.0,0.00021621,2]
[312794827,1706243079202,-150.0,0.00021621,2]
[312794828,1706243094227,1800.0,0.00021552,2]
[312794829,1706243111683,-51.33433902,0.00021621,2]
[312794830,1706243124145,3948.66566098,0.00021621,2]
[312794831,1706243124172,4000.0,0.00021621,2]
[312794832,1706243124194,2621.86255144,0.00021621,2]
[312794833,1706243191617,154.71,0.00019683,2]
[312794834,1706243201174,-4000.0,0.00021622,2]
[312794835,1706243201744,23900.0,0.00021555,2]
[312794836,1706243202444,-1000.0,0.00021621,2]
[312794837,1706243202466,-3000.0,0.00021622,2]
[312794838,1706243203623,-4000.0,0.00021622,2]
[312794839,1706243204684,-4000.0,0.00021622,2]
[312794840,1706243205891,-4000.0,0.00021622,2]
[312794841,1706243207071,-30.94116353,0.00021622,2]
[312794842,1706243217803,1921.93,0.00021555,2]
[312794843,1706243394768,186.92,0.00021555,2]
[312794856,1706243432219,-455.94522447,0.00021642,2]
[312794857,1706243432382,-1200.19477553,0.00021642,2]
[312794858,1706243432395,-485.48,0.00021647,2]
[312794859,1706243432405,-154.52,0.00021647,2]
[312794860,1706243432414,-160.0,0.00021726,2]
[312794861,1706243432423,-1210.9,0.00021728,2]
[312794862,1706243432432,-710.4316209,0.00021848,2]
[312794863,1706243432442,-250.0,0.00021918,2]
[312794864,1706243432451,-151.73,0.00021943,2]
[312794865,1706243432460,-151.73,0.00022019,2]
[312794866,1706243432470,-151.73,0.00022095,2]
[312794867,1706243432481,-165.43,0.00022102,2]
[312794868,1706243432490,-151.73,0.00022172,2]
[312794870,1706243432499,-840.0,0.00022184,2]
[312794872,1706243432509,-190.5,0.00022196,2]
[312794873,1706243432518,-151.73,0.00022248,2]
[312794875,1706243432527,-151.73,0.00022324,2]
[312794877,1706243432536,-151.73,0.000224,2]
[312794878,1706243432545,-151.44,0.00022469,2]
[312794879,1706243432555,-151.73,0.00022477,2]
[312794880,1706243432564,-151.73,0.00022553,2]
[312794881,1706243432578,-151.73,0.00022629,2]
[312794882,1706243432587,-300.0,0.00022704,2]
[312794883,1706243432597,-150.0,0.00022704,2]
[312794884,1706243432606,-151.73,0.00022705,2]
[312794885,1706243432615,-399.52600107,0.00022768,2]
[312794886,1706243432624,-151.73,0.00022781,2]
[312794887,1706243432634,-2018.25817237,0.000228,3]
[312794888,1706243432643,-331.5094,0.000228,2]
[312794889,1706243432653,-7683.3372,0.000228,2]
[312794890,1706243432662,-682.8326,0.000228,2]
[312794891,1706243432671,-151.73,0.00022858,2]
[312794892,1706243432680,-218.19610584,0.00022875,2]
[312794893,1706243432690,-14733.11368095,0.00022888,2]
[312794894,1706243432699,-335.67784985,0.00022898,2]
[312794895,1706243432709,-307.64696855,0.00022898,2]
[312794896,1706243432718,-418.10264228,0.00022898,2]
[312794897,1706243432728,-193.89468006,0.00022898,2]
[312794898,1706243432737,-1361.29500003,0.00022898,2]
[312794899,1706243432747,-5055.37843873,0.00022898,2]
[312794900,1706243432756,-1000.0,0.00022898,2]
[312794901,1706243432766,-409.75881252,0.00022898,2]
[312794902,1706243432775,-888.985,0.00022898,2]
[312794903,1706243432784,-7101.1911,0.00022898,2]
[312794904,1706243432793,-410.95024211,0.000229,2]
[312794905,1706243432802,-755.4655,0.000229,2]
[312794906,1706243432812,-1792.1294,0.000229,2]
[312794907,1706243432821,-500.0,0.000229,2]
[312794908,1706243432830,-85723.1671,0.000229,2]
[312794909,1706243432839,-42003.08359837,0.000229,2]
[312794910,1706243432851,-345.85363924,0.000229,2]
[312794911,1706243432863,-12883.02386239,0.000229,2]
[312794912,1706243432872,-151.73,0.00022934,2]
[312794913,1706243432881,-655.45505102,0.00022977,2]
[312794914,1706243432890,-767.58742384,0.00022998,2]
[312794915,1706243432899,-180.34782241,0.00022998,2]
[312794916,1706243432912,-342.5878432,0.00022998,2]
[312794917,1706243432921,-156.15342438,0.00022998,2]
[312794918,1706243432930,-551.66000558,0.00022998,2]
[312794919,1706243432940,-253.24540169,0.00022998,2]
[312794920,1706243432949,-4645.97375057,0.00022998,2]
[312794921,1706243432958,-484.45845653,0.00022998,2]
[312794922,1706243432967,-250.28452189,0.00022998,2]
[312794923,1706243432977,-2220.1589234,0.00022998,2]
[312794924,1706243432986,-226.77797338,0.00022998,2]
[312794925,1706243432995,-255.7670365,0.00022998,2]
[312794926,1706243433005,-156.45456464,0.00022998,2]
[312794927,1706243433015,-267.82830705,0.00022998,2]
[312794928,1706243433024,-287.06741501,0.00022998,2]
[312794929,1706243433033,-202.11575792,0.00022998,2]
[312794930,1706243433043,-369.28347676,0.00022998,2]
[312794931,1706243433052,-155.83594913,0.00022998,2]
[312794932,1706243433061,-265.67371676,0.00022998,2]
[312794933,1706243433071,-223.00932994,0.00022998,2]
[312794934,1706243433080,-156.27173792,0.00022998,2]
[312794935,1706243433090,-204.40930152,0.00022998,2]
[312794936,1706243433099,-953.55625758,0.00022998,2]
[312794937,1706243433109,-359.33421572,0.00022998,2]
[312794938,1706243433118,-248.5419635,0.00022998,2]
[312794939,1706243433127,-1725.71620503,0.00022998,2]
[312794940,1706243433138,-158.55778368,0.00022998,2]
[312794941,1706243433148,-1423.57567134,0.00022998,2]
[312794942,1706243433157,-537.00974705,0.00022998,2]
[312794943,1706243433166,-14198.30499158,0.00022998,2]
[312794944,1706243433175,-1493.9790749,0.00022999,2]
[312794945,1706243433188,-343.45670991,0.00022999,2]
[312794946,1706243433200,-566.45089601,0.00022999,2]
[312794947,1706243433209,-155.17416918,0.00022999,2]
[312794948,1706243433218,-278.24919481,0.00023,2]
[312794949,1706243433230,-301.52504693,0.00023,2]
[312794950,1706243433241,-10974.99028053,0.00023,2]
[312794951,1706243433262,-745.35826249,0.00023,2]
[312794952,1706243433274,-935.31158802,0.00023,2]
[312794953,1706243433285,-578.53223834,0.00023,2]
[312794954,1706243433297,-853.71847551,0.00023,2]
[312794955,1706243433309,-852.59213198,0.00023,2]
[312794956,1706243433324,-300.96616691,0.00023,2]
[312794967,1706243438178,-10331.81384446,0.00023,2]
[312794969,1706243438190,-2027.33882137,0.00023,2]
[312794971,1706243438240,-616.01249581,0.00023,2]
[312794972,1706243438293,-54521.60839586,0.00023,2]
[312794973,1706243438305,-370.9210067,0.00023,2]
[312794974,1706243438317,-417.121379,0.00023,2]
[312794975,1706243438328,-281.55,0.00023,2]
[312794976,1706243438350,-30663.62667126,0.00023,2]
[312794977,1706243438362,-4352.92914523,0.00023,2]
[312794978,1706243438373,-1840.01178555,0.00023,2]
[312794979,1706243438592,-8140.26864586,0.00023,2]
[312794981,1706243438604,-1026.66280624,0.00023,2]
[312794983,1706243438615,-1265.79024908,0.00023,2]
[312794985,1706243438627,-698.98004566,0.00023,2]
[312795052,1706243441447,-116040.43420246,0.00023,2]
[312795053,1706243441603,-260576.7816446,0.00023,2]
[312795054,1706243441613,-151.73,0.0002301,2]
[312795055,1706243441622,-151.73,0.00023086,2]
[312795056,1706243441632,-168.66458954,0.00023191,2]
[312795057,1706243441641,-485.48,0.00023291,2]
[312795058,1706243441651,-151.44,0.00023592,2]
[312795059,1706243441660,-154.71,0.00023984,2]
[312795060,1706243441669,-553.0,0.000244,2]
[312795061,1706243441678,-160.0,0.00024442,2]
[312795062,1706243441688,-250.0,0.00024658,2]
[312795063,1706243441697,-151.44,0.00024715,2]
[312795064,1706243441707,-423.764,0.00024755,2]
[312795065,1706243441716,-154.52,0.00024851,2]
[312795066,1706243441725,-485.48,0.00024935,2]
[312795067,1706243441735,-840.0,0.00024957,2]
[312795068,1706243441744,-450.0,0.00025,3]
[312795069,1706243441753,-323.3899368,0.00025459,2]
[312795070,1706243441766,-151.44,0.00025839,2]
[312795071,1706243441777,-655.45505101,0.00026537,3]
[312795072,1706243441787,-735.64,0.00026575,2]
[312795074,1706243441796,-9835.41,0.00026575,2]
[312795076,1706243441806,-485.48,0.00026578,2]
[312795078,1706243441816,-200.0,0.00026799,2]
[312795080,1706243441825,-151.44,0.00026962,2]
[312795082,1706243441835,-160.0,0.00027158,2]
[312795085,1706243441845,-1335.719099,0.00027397,2]
[312795087,1706243441861,-1229.930901,0.00027397,2]
[312795089,1706243441870,-1919.68,0.00027397,2]
[312795091,1706243441880,-2808.64,0.00027397,2]
[312795093,1706243441889,-4307.93168701,0.00027397,2]
[312795122,1706243443233,-9941.9472232,0.00027397,2]
[312795123,1706243443290,-4950.14600257,0.00027397,2]
[312795124,1706243443303,-222.52508722,0.00027397,2]
[312795125,1706243443312,-407.79,0.00027397,2]
[312795126,1706243443322,-840.0,0.0002773,2]
[312795127,1706243443332,-200.57894482,0.00028,2]
[312795128,1706243443342,-485.48,0.00028222,2]
[312795129,1706243443351,-15.88367832,0.00028285,2]
[312795130,1706243443375,-138.82632168,0.00028285,2]
[312795131,1706243443385,-175.77811958,0.000298,2]
[312795132,1706243443395,-485.48,0.00029866,2]
[312795133,1706243443412,-160.0,0.00029873,2]
[312795134,1706243443422,-155.0,0.0003,2]
[312795135,1706243443432,-200.0,0.0003,2]
[312795136,1706243443443,-561.3345,0.0003,2]
[312795137,1706243443453,-561.3345,0.0003,2]
[312795138,1706243443462,-303.414003,0.0003,2]
[312795139,1706243443518,-257.920497,0.0003,2]
[312795140,1706243443529,-561.3345,0.0003,2]
[312795141,1706243443538,-561.3345,0.0003,2]
[312795142,1706243443548,-561.3345,0.0003,2]
[312795143,1706243443558,-655.45505101,0.00030098,4]
[312795144,1706243443567,-155.12,0.00030137,2]
[312795145,1706243443577,-840.0,0.00030503,2]
[312795146,1706243443587,-5981.73182763,0.00030503,14]
[312795147,1706243443597,-1000.0,0.000308,2]
[312795148,1706243443607,-344.0,0.000308,2]
[312795149,1706243443616,-207.0,0.0003147,2]
[312795150,1706243443626,-154.71,0.00032587,2]
[312795151,1706243443636,-160.0,0.00032589,2]
[312795152,1706243443646,-164.37,0.00032877,15]
[312795153,1706243443655,-433.0,0.00033063,5]
[312795154,1706243443665,-840.0,0.00033276,2]
[312795155,1706243443674,-655.45505101,0.00033658,6]
[312795156,1706243443684,-152.0,0.00033946,3]
[312795157,1706243443695,-1000.0,0.00034,4]
[312795158,1706243443704,-150.0,0.000342,2]
[312795160,1706243443714,-153.96831707,0.00034295,2]
[312795162,1706243443723,-502.06265033,0.00034611,2]
[312795163,1706243443733,-567.68533909,0.000349,2]
[312795164,1706243443742,-578.71738736,0.00035,2]
[312795165,1706243443755,-274.88675548,0.00035,2]
[312795167,1706243443765,-274.88675548,0.00035,2]
[312795168,1706243443775,-274.88675548,0.00035,2]
[312795169,1706243443785,-274.88675548,0.00035,2]
[312795170,1706243443795,-274.88675548,0.00035,2]
[312795171,1706243443804,-152.0,0.00035101,4]
[312795172,1706243443813,-1000.0,0.00035227,7]
[312795173,1706243443823,-1000.0,0.00035251,7]
[312795174,1706243443832,-1023.50941516,0.00035347,7]
[312795175,1706243443843,-256.19423439,0.00035347,6]
[312795176,1706243443853,-197.28732275,0.00035347,7]
[312795177,1706243443862,-1000.0,0.00035347,7]
[312795178,1706243443872,-516.66087414,0.00035347,7]
[312795179,1706243443882,-1301.752535,0.00036,10]
[312795180,1706243443892,-987.55687021,0.00036094,2]
[312795181,1706243443901,-155.0,0.00036095,4]
[312795182,1706243443912,-500.0,0.00036095,2]
[312795183,1706243443922,-5849.00396766,0.00036095,4]
[312795184,1706243443931,-192.72805828,0.00036095,4]
[312795185,1706243443942,-3774.96830256,0.000361,7]
[312795186,1706243443952,-269.53772831,0.000361,4]
[312795187,1706243443962,-306.372201,0.000361,4]
[312795188,1706243443973,-1975.383999,0.000361,4]
[312795189,1706243443983,-1824.87,0.000361,5]
[312795190,1706243443994,-3029.910186,0.00036106,2]
[312795191,1706243444004,-57277.55806571,0.00036106,2]
[312795192,1706243444017,-926.38502705,0.00036106,2]
[312795193,1706243444030,-289.315,0.00036106,2]
[312795194,1706243444042,-1293.79166905,0.00036106,2]
[312795195,1706243444058,-633.13267263,0.00036106,2]
[312795196,1706243444071,-915.21587112,0.00036106,2]
[312795197,1706243444082,-6649.251936,0.00036106,2]
[312795198,1706243444096,-2263.87724478,0.00036106,2]
[312795199,1706243444107,-4824.07128542,0.00036106,2]
[312795200,1706243444119,-338.20311739,0.00036106,2]
[312795201,1706243444130,-666.41,0.00036106,2]
[312795202,1706243444142,-6855.90067227,0.00036106,2]
[312795203,1706243446272,-318.62652592,0.00027396,4]
[312795204,1706243446327,-405.81528365,0.00027396,4]
[312795205,1706243446338,-275.55819043,0.00027396,4]
[312795206,1706243446348,-5043.62254258,0.00036106,2]
[312795207,1706243446358,-948.2261881,0.00036106,2]
[312795208,1706243446368,-167.4408191,0.00036131,2]
[312795209,1706243446378,-152.0,0.00036257,5]
[312795210,1706243446389,-291.4788422,0.00036586,4]
[312795211,1706243446399,-270.3120457,0.00036586,2]
[312795212,1706243446411,-164.37,0.00036613,15]
[312795213,1706243446421,-174.66498353,0.0003668,30]
[312795214,1706243446430,-214.45874033,0.00036799,2]
[312795215,1706243446440,-150.498375,0.000368,2]
[312795216,1706243446451,-154.71,0.00036888,2]
[312795217,1706243446460,-2722.90392074,0.0003689,7]
[312795218,1706243446473,-390.61508953,0.0003689,7]
[312795219,1706243446507,-1886.48098973,0.0003689,7]
[312795220,1706243446517,-150.0,0.00036899,2]
[312795221,1706243446528,-176.58,0.000369,2]
[312795222,1706243446538,-520.32305343,0.000369,2]
[312795223,1706243446549,-622.03257332,0.00037,21]
[312795224,1706243446562,-759.08272986,0.00037,21]
[312795225,1706243446600,-3599.30152323,0.00037,21]
[312795226,1706243446612,-1949.97033606,0.00037,21]
[312795227,1706243446624,-612.16638275,0.00037,21]
[312795228,1706243446635,-550.66084252,0.00037,21]
[312795229,1706243446667,-178.60484702,0.000324,2]
[312795230,1706243446676,-3795.92352332,0.00037,21]
[312795236,1706243706094,170.23,0.00021555,2]
[312795237,1706243711956,1689.97883647,0.00021555,2]
[312795238,1706243711979,4000.0,0.00021555,2]
[312795239,1706243712000,4000.0,0.00021555,2]
[312795240,1706243712019,2369.83116353,0.00021555,2]
[312795241,1706244127049,292.26,0.00021555,2]
[312795244,1706244437881,155.0,0.00021623,2]
[312795245,1706244440090,-517.4527674,0.00021624,2]
[312795246,1706244440110,-324.0,0.00021627,2]
[312795247,1706244440131,-228.85160586,0.00021634,2]
[312795248,1706244440152,-154.48,0.00021717,2]
[312795249,1706244440173,-160.50007312,0.00021818,2]
[312795250,1706244440194,-154.48,0.00022,2]
[312795251,1706244440214,-150.0,0.00022282,2]
[312795252,1706244440234,-3446.78,0.00022283,2]
[312795253,1706244440255,-154.48,0.00022283,2]
[312795254,1706244440274,-495.82,0.00022565,2]
[312795255,1706244440294,-733.26280017,0.00022565,2]
[312795256,1706244471570,-1603.79593685,0.00021625,2]
[312795257,1706244471592,-3710.17719983,0.00022565,2]
[312795258,1706244471613,-154.48,0.00022565,2]
[312795259,1706244471635,-313.0106,0.000227,2]
[312795260,1706244471655,-155.0,0.00022799,2]
[312795261,1706244471675,-191.64942257,0.00022799,2]
[312795262,1706244471695,-10457.25,0.000228,2]
[312795263,1706244471716,-500.0,0.000228,2]
[312795264,1706244471740,-941.894,0.000228,2]
[312795265,1706244471760,-6972.74284075,0.000228,2]
[312795266,1706244482940,-5000.0,0.000228,2]
[312795267,1706244619222,306.49171707,0.00020518,2]
[312795268,1706244630358,16787.8864,0.00021524,14]
[312795275,1706244632339,-1922.86375946,0.00022695,2]
[312795276,1706244632351,-1125.76648763,0.00022695,2]
[312795277,1706244632361,-149.09888383,0.00022696,2]
[312795278,1706244632373,-469.13636334,0.00022696,2]
[312795279,1706244632421,-3247.47062763,0.00022696,2]
[312795280,1706244632430,-1419.37423398,0.00022696,2]
[312795281,1706244632440,-4494.87788226,0.00022696,2]
[312795282,1706244632450,-1000.0,0.00022696,2]
[312795283,1706244632460,-1258.19673918,0.00022697,2]
[312795284,1706244632470,-3631.13972401,0.00022697,2]
[312795285,1706244632479,-4279.3718956,0.00022697,2]
[312795286,1706244632488,-2951.67554482,0.00022697,2]
[312795287,1706244632498,-5223.33200777,0.00022697,2]
[312795288,1706244632519,-2023.76480274,0.00022697,2]
[312795289,1706244632529,-4356.58302865,0.00022698,2]
[312795290,1706244632539,-2310.49722789,0.00022698,2]
[312795291,1706244632549,-1072.40376802,0.00022698,2]
[312795292,1706244632558,-2142.72673113,0.00022698,2]
[312795293,1706244632568,-24384.72446872,0.00022698,2]
[312795294,1706244632578,-3149.41009144,0.00022698,2]
[312795295,1706244632587,-2906.43367088,0.00022698,2]
[312795296,1706244632597,-43070.88092127,0.00022698,2]